{"text_format":"1","workbook":"xlsx","n_sheets":6,"sheets":["Dépôts et typologies","Imagerie","Affiche","Estampe","Livre d'artiste Livre graphique","Photographie"],"not_rendered":{"charts":0,"images":0,"macros":0,"external_links":0,"defined_names":9,"comments":0,"pivot_tables":0},"unopened":[],"bounds":{"document_bytes":16777216,"sheet_cells":100000,"rows_first":2000,"rows_last":500,"rows_between":2000,"halvings":0,"cell_chars":16384,"cell_head_chars":4096},"cells_cut":0,"cells_raw":0,"read":"whole","date_system":"1900"}

{"sheet":"Dépôts et typologies","index":0,"n_rows":60,"n_cols":7,"rows_kept":60,"cut":false,"hidden":false,"merged":[[3,3,3,4],[3,5,3,6]]}
[]
["Répartition par secteur du nombre de dépôts et documents reçus par dépôt légal de documents graphiques et photographiques"]
[]
[null,2016,null,2017,null,2018]
[null,"Total dépôts","Total documents déposés","Total dépôts","Total documents déposés","Total dépôts","Total documents déposés"]
["Imagerie",1693,5320,2096,8971,2111,7601]
["Affiche",250,542,269,331,658,1109]
["Gravure-estampe",336,433,242,253,336,366]
["Livre d'artiste, Livre graphique",78,92,70,70,72,72]
["Photographie",7,150,9,87,39,460]
["Totaux ",{"$f":"SUM(B6:B10)","v":2364},6537,2686,9712,3216,9608]
["Source : Entrées dépôt légal"]
[]
["Nature des documents reçus par dépôt légal tous secteurs"]
[]
["Typologie des documents",2016,2017,2018]
["Affiche",538,298,836]
["Albums à colorier",731,634,781]
["Autocollants",275,308,446]
["Bons points",200,1050]
["Jeu de bons points",null,null,1]
["Calendriers",138,891,414]
["carte postale d'artiste",null,5,13]
["Cartes à jouer et jeux de cartes",965,967,375]
["Cartes de fantaisie",333,850,1586]
["Cartes de vœux",82,80,47]
["Cartes postales",1509,3574,3171]
["Images et cartes publicitaires",19,39,271]
["Cartons d'invitation",6,17,31]
["Image à découper",54,50,226]
["Ephemera d'artiste - \ntravaux graphiques",4,24,3]
["Estampe originale",341,241,330]
["Graphzine",39]
["Livre animé, flip-book",15,null,1]
["Imagerie diverse (non typé)",200]
["Imagerie religieuse",39,40]
["Imagiers, livres d'images",9,1,8]
["Kamishibai (planche)",541]
["Kamishibaï",null,53,29]
["Livre d'activités liés à l'image",48,142,24]
["Livre d'artiste",27,54,34]
["Livre graphique (2)",26,17,38]
["Livre de photographe",null,2,7]
["Périodique de photographies originales",null,1]
["Marque-pages",49,35,49]
["Matériel didactique (modèles)",null,7]
["Image didactique",105,null,21]
["Panneaux didactiques",16,36,12]
["Photographie originale",150,85,433]
["portfolio d'estampes",69,12,33]
["Portfolio de photographie",4,3]
["Poster",37,40,165]
["Album et planche de reproductions d'œuvre",91,101,215]
["Alphabet",20]
["Sets de table",7,42]
["Éléments de jeux, puzzle",58,18,8]
["Source : Entrées dépôt légal"]
[]
["*Un portfolio n'est pas compris dans le total ; ses planches sont comptabilisées à la ligne \"photographie positive originale\" "]
["(2) A partir de 2017, comprend les livres graphiques, graphzines et fanzines"]

{"sheet":"Imagerie","index":1,"n_rows":428,"n_cols":11,"rows_kept":428,"cut":false,"hidden":false,"merged":[]}
[]
["Liste des 10 principaux déposants par année de dépôt - Imagerie"]
[]
[null,2016,null,null,null,2017,null,null,null,2018]
["Nom déposant","Nb dépôts","Documents déposés",null,"Nom déposant","Nb dépôts","Documents déposés",null,"Nom déposant","Nb dépôts","Documents déposés"]
["EDY S.A.",26,603,null,"Editions Lito",221,1506,null,"EDY S.A.",74,2292]
["Editions Cellard",24,503,null,"Editions Cellard",72,1443,null,"JOS LE DOARE EDITIONS",73,898]
["KIEFFER, Michel",31,396,null,"EDY S.A.",38,1047,null,"Editions Normandes Le Goubey",21,499]
["Editions Lito",90,295,null,"Editions Normandes Le Goubey",22,760,null,"Editions Piccolia",299,299]
["EDITIONS VALOIRE-ESTEL",36,266,null,"Editions Lavigne",8,536,null,"ATELIER DES NOYERS",21,289]
["Edilarge-Éditions Ouest-France",21,193,null,"EDITIONS VALOIRE-ESTEL",89,345,null,"Editions Cellard",22,221]
["Didémo",2,186,null,"WHEE !",4,270,null,"Editions Lavigne",2,216]
["MSM S.A.S.",12,161,null,"Editions Jos le Doare",24,261,null,"Hachette Jeunesse",203,203]
["Hachette Jeunesse",159,159,null,"MSM S.A.S.",83,230,null,"GELABERT Serge",4,202]
["Hemma Editions S.A.",134,134,null,"ATELIER DES NOYERS",11,205,null,"L'autre chemin",4,188]
["TES CRDP de Bretagne",4,133,null,"Hemma Editions S.A.",171,171,null,"Hemma Editions S.A.",149,149]
["Centre des monuments nationaux Editions du Patrimoine",92,92,null,"Editions Le Souffle d'Or",2,131,null,"Centre des monuments nationaux Editions du Patrimoine",103,139]
["Hachette pratique",77,77,null,"Editions des deux coqs d'or",108,108,null,"Bibliothèque Départementale de la Réunion",9,134]
["Les éditions du Pas de l'Echelle",5,68,null,"J CARTIER-BRESSON",3,107,null,"EDITIONS DU CARMEL",1,133]
["Baracetti",1,68,null,"Hachette Jeunesse",104,104,null,"Editions Lito",98,98]
["Editions des deux coqs d'or",62,62,null,"Centre des monuments nationaux Editions du Patrimoine",39,87,null,"Editions des deux coqs d'or",78,78]
["OVET SOUVENIRS",8,60,null,"Fleurus-Mame",5,86,null,"MSM S.A.S.",17,59]
["Marabout",43,57,null,"Hachette pratique",68,68,null,"Le Ballon",56,56]
["COMMUNAUTÉ URBAINE D'ARRAS Direction de la communication",1,56,null,"Thierry SAINT-LUC et Julien ESCAFFRE",4,66,null,"Hugo & Cie",55,55]
["Jean MICHAUT",1,55,null,"Hugo & Cie",56,56,null,"Pika Edition",2,51]
["WHEE !",1,55,null,"Edilarge-Éditions Ouest-France",9,50,null,"Prisma Media",3,43]
["Association Les Requins Marteaux",1,54,null,"Laure BOMPIEYRE",47,47,null,"Association d'une langue à l'autre",1,42]
["Kamishibaïs Editions",4,54,null,"Musée de l'image / ville d'Epinal",4,45,null,"Thierry SAINT-LUC et Julien ESCAFFRE",2,41]
["Hugo & Cie",52,52,null,"JOUVENCE (éditions)",1,43,null,"Hachette pratique",35,40]
["BAYARD JEUNESSE",10,51,null,"Groupe Fleurus",38,38,null,"Anonyme",2,38]
["Groupe Fleurus",44,47,null,"KIEFFER, Michel",31,37,null,"Musée de l'image / ville d'Epinal",6,38]
["Partage",2,45,null,"FRAC D'ÎLE-DE-FRANCE",1,37,null,"Editions Actes Sud",3,38]
["LOVINGEDEL ÉDITIONS",2,42,null,"LA POISSONNERIE (ASSOCIATION)",1,36,null,"Hachette-Livre Editions du Chêne et EPA",11,38]
["SDP le livre club",42,42,null,"Play Bac",35,35,null,"Le Carré Scène nationale - Centre d'art contemporain",1,32]
["LA POISSONNERIE (ASSOCIATION)",1,42,null,"Le Ballon",35,35,null,"Marabout",31,31]
["ASSOCIATION DJENIES DJEMBE",3,41,null,"PEGASE",1,33,null,"LA MÉSANGE BLEUE (ÉDITIONS)",4,30]
["RVB",1,38,null,"OVET SOUVENIRS",5,30,null,"Laure BOMPIEYRE",30,30]
["ÉDITIONS HAONA",1,34,null,"Mairie de Besançon",17,28,null,"Ville de Besançon",12,29]
["Hachette Livres Département Dépôt légal",27,34,null,"Marabout",24,24,null,"LA POISSONNERIE (ASSOCIATION)",1,25]
["ASSOCIATION EXTRA",3,33,null,"LA MÉSANGE BLEUE (ÉDITIONS)",4,24,null,"LAFORÊT Laetitia",1,25]
["ANAKA",1,31,null,"SDP le livre club",20,20,null,"Mairie de Besançon",22,22]
["Hachette-Livre Editions du Chêne et EPA",29,29,null,"LITAVIS",20,20,null,"Dessain et Tolra",21,21]
["Editions A. LECONTE",6,29,null,"Geste éditions",19,19,null,"Editions Milan",20,20]
["VOIX D'ENCRE (ÉDITIONS)",3,29,null,"EITIONS DU MONITEUR - INFOPRO DIGITAL",19,19,null,"APPENDICES",1,20]
["JM2 EDITIONS",1,28,null,"Editions Nathan",19,19,null,"Gallimard Jeunesse",20,20]
["Mairie de Besançon",13,28,null,"SODIS",19,19,null,"Play Bac",19,19]
["Musée de Morlaix",6,27,null,"Panini France",19,19,null,"SDP le livre club",19,19]
["Michèle SARRAT",1,27,null,"Editions Gründ Jeunesse",19,19,null,"EDITIONS VENUS D'AILLEURS",2,17]
["REPER' & VOUS",3,25,null,"Editions 365",18,18,null,"EDITIONS HYDRA",1,16]
["Clorophyl Editions",24,24,null,"Parmentier, Pascal P.",17,17,null,"Editions Larousse",16,16]
["Editions Milan",13,24,null,"Albin Michel Jeunesse",17,17,null,"Geste éditions",15,15]
["Gallimard Jeunesse",23,23,null,"Ville de Besançon",10,16,null,"KIEFFER, Michel",15,15]
["Olivier BRICE",1,21,null,"Musée des beaux-arts de Brest",16,16,null,"Éditions Apeiron",14,14]
["CAUSERIES CULINAIRES (LES)",20,20,null,"LES EDITIONS DE L'IMPLIQUE",1,16,null,"Fleurus éditions - Marque Fleurus Découvertes",14,14]
["IMPRIMERIE NATIONALE  Atelier du livre d'art et de l'estampe",2,20,null,"Editions Ylang images",2,15,null,"Kamishibaïs Editions",13,13]
["Parmentier, Pascal P.",7,19,null,"CULTURE DIFF",15,15,null,"Editions Gründ Jeunesse",13,13]
["Editions Gründ Jeunesse",18,18,null,"Groupement national interprofessionnel des semences, graines et plants",2,15,null,"ABC DES BANDES DESSINEES",2,12]
["Cerise bleue",18,18,null,"Michèle SARRAT",1,14,null,"Fleurus éditions - Marque Rustica Editions",12,12]
["Albin Michel Jeunesse",17,17,null,"Hachette-Livre Editions du Chêne et EPA",13,13,null,"CNRS MIDI-PYRENEES",1,12]
["Editions Nathan",17,17,null,"Jeunesse au plein air",1,12,null,"MHB CREATION",1,12]
["Jeunesse au plein air",1,16,null,"TES CRDP de Bretagne",2,12,null,"Les Livres du Dragon d'Or",11,11]
["Play Bac",16,16,null,"Callicephale Editions",12,12,null,"Jeunesse au plein air",1,11]
["Langue au chat",15,15,null,"Editions Pitchou",11,11,null,"Fleurus éditions - Marque Vagnon",9,11]
["Les Livres du Dragon d'Or",13,13,null,"Editions First",11,11,null,"MG Editions",10,10]
["Editions 365 ",13,13,null,"Hatier Editions",11,11,null,"Editions Artémis",10,10]
["Editions Mila",13,13,null,"Editions Auzou",11,11,null,"Editions Mila",10,10]
["C COM CHAT",1,13,null,"Editions Larousse",10,10,null,"Fleurus-Mame",10,10]
["Editions Des Grandes Personnes",3,12,null,"DG Diffusion",10,10,null,"SODIS",10,10]
["Lise DUCONTE",12,12,null,"Editions Milan",10,10,null,"ZANDVLIET Pierre",3,10]
["Editions Gründ",12,12,null,"Les Livres du Dragon d'Or",9,9,null,"Claudine DELMAS",2,10]
["La maison est en carton",7,12,null,"Danielle GODART",1,9,null,"Editions First",9,9]
["EITIONS DU MONITEUR - INFOPRO DIGITAL",12,12,null,"Usborne publishing",9,9,null,"Edilarge-Éditions Ouest-France",8,9]
["Panini France",11,11,null,"SEYNAEVE Pascale",1,8,null,"COMPLICES EDTIONS",1,9]
["Jean-Marie MICHEL",1,10,null,"Clorophyl Editions",8,8,null,"France Loisirs",9,9]
["Doré Sophie",1,10,null,"Editions Quatre Fleuves",7,7,null,"CHANTECLER BELGIQUE",8,8]
["Editions Solar",9,9,null,"Editions Piccolia",7,7,null,"Hatier Editions",8,8]
["ANAGRAPHIS",1,9,null,"France Loisirs",7,7,null,"Fleurus éditions - Marque Mango Art de Vivre",8,8]
["Centre France Livres",9,9,null,"Chantecler France",6,6,null,"Editions Glénat",8,8]
["S. Corrieri création",8,8,null,"M. Dalle-Rive",1,6,null,"Design Peï",8,8]
["YVES DUCOURTIOUX EDITEUR",1,8,null,"Langue au chat",6,6,null,"Communauté de communes carmausin-ségala",8,8]
["Serge Philippe LECOURT",1,8,null,"BAYARD JEUNESSE",6,6,null,"Editions Nathan",1,7]
["Editions FLBLB",8,8,null,"GRAND COGNAC, Communauté d'agglomération",1,6,null,"Danielle GODART",2,7]
["OPERA NATIONAL DE BORDEAUX",8,8,null,"KAZÉ MANGA / ASUKA",6,6,null,"DALLE-RIVE, Jean-François",1,7]
["Editions Glénat",7,7,null,"BEAUSET,  Armanini Yvon",2,5,null,"Huginn & Muninn / Mediatoon Licensing",6,6]
["ETATS DE BRETAGNE (EDITIONS)",4,6,null,"Editions Actes Sud",5,5,null,"Guy Delcourt Productions",6,6]
["EDITIONS COURTES ET LONGUES",6,6,null,"Editions Babiroussa",5,5,null,"Editions Maguerite Waknine",6,6]
["DG Diffusion",6,6,null,"Editions Mila",4,4,null,"Editions Flammarion",6,6]
["Delphine MOULET",6,6,null,"BOETTCHER, Michel",4,4,null,"LIBELLA",6,6]
["MAARTIN",6,6,null,"Mango S.A.",4,4,null,"Minedition",5,5]
["France Loisirs",6,6,null,"OFFICE DE TOURISME DE CERGY-PONTOISE PORTE DU VEXIN",1,4,null,"Lise DUCONTE",5,5]
["AMVOULI FIRA",1,5,null,"Editions Soleil",4,4,null,"SEPCHAT EDITIONS",1,5]
["Editions Soleil",5,5,null,"Editions LLB",4,4,null,"Panini France",5,5]
["Editions Néphélées",5,5,null,"Editions Glénat",4,4,null,"Mango S.A.",5,5]
["Editions Quatre Fleuves",5,5,null,"L'heure dite",4,4,null,"Hachette éducation",5,5]
["Groupe Eyrolles",5,5,null,"Groix Editions et Diffusion",4,4,null,"Papiers coupés",5,5]
["Hachette Collections ",5,5,null,"Maison de la Culture du Japon à Paris",2,4,null,"Parmentier, Pascal P.",5,5]
["EDITIONS YOGI LING",1,5,null,"Editions Helen Exley",1,4,null,"Groupe Fleurus",5,5]
["Chantecler Belgique",5,5,null,"MARTEAU Patrick",2,4,null,"Septéditions",4,4]
["Conseil départemental des Deux-Sèvres, DAG / Service de la Documentation",1,5,null,"ICHARACTER LTD",4,4,null,"Editions Helen Exley",4,4]
["Geste éditions",5,5,null,"Editions ADA",4,4,null,"YVES DUCOURTIOUX EDITEUR",4,4]
["Editions de l'Archipel",4,4,null,"Karine VILLALONGA",4,4,null,"Albin Michel Jeunesse",4,4]
["KAZÉ MANGA / ASUKA",4,4,null,"Olivier BRICE",1,4,null,"CHAUVIN Lisa",4,4]
["POULET(TE) DE SARTHE",1,4,null,"Splash !",4,4,null,"404 Editions",4,4]
["ASSOCIATION FLETA",1,4,null,"Septéditions",2,4,null,"Editions Syel",4,4]
["Maison de la Culture du Japon à Paris",2,4,null,"TEMPODIA (EDITIONS)",4,4,null,"La maison est en carton",4,4]
["LIBELLA",4,4,null,"Editions Flammarion",4,4,null,"Clorophyl Editions",3,3]
["Guy Delcourt Productions",3,3,null,"C COM CHAT",3,3,null,"EDITIONS LA PLAGE",3,3]
["Colorant 14",3,3,null,"CAIRN EDITIONS",3,3,null,"Terre Vivante",3,3]
["Mango S.A.",3,3,null,"Editions Clin d'Oeil",3,3,null,"Groupement national interprofessionnel des semences, graines et plants",3,3]
["Syndicat mixte du Parc régional de l'Avesnois",2,3,null,"L'ABRI-COT",1,3,null,"Editions de l'instant durable",3,3]
["Association couleur cirque",1,3,null,"Cartophiles et historiens tarnais",2,3,null,"Messagerie ADP",3,3]
["City éditions",3,3,null,"2B2M",3,3,null,"KAZÉ MANGA / ASUKA",3,3]
["Minus Editions",3,3,null,"ABC DES BANDES DESSINEES",3,3,null,"Hachette-livre, collection Disney",3,3]
["MARTEAU Patrick",3,3,null,"Delphine MOULET",3,3,null,"DG Diffusion",3,3]
["Editions Maguerite Waknine",3,3,null,"Editions Contre-dires",3,3,null,"MESC",3,3]
["Les Editions de Saxe",3,3,null,"Association Tranch Papaye",3,3,null,"Les trois ourses",1,3]
["Lieutenant Willsdorff",3,3,null,"Editions de la Martinière",3,3,null,"Mairie de Bouguenais",1,2]
["MARGOT EDITIONS",1,3,null,"Coop Breizh",3,3,null,"Rassemblement à Son Image",2,2]
["Liliane SCHWEBEL",2,3,null,"Lise DUCONTE",3,3,null,"Philbert, Roger",2,2]
["BEAUSET,  Armanini Yvon",2,3,null,"Terre Vivante",3,3,null,"Atelier Esope",2,2]
["Editions Casterman S.A.",3,3,null,"La vie moderne",3,3,null,"Serge STRIPPENTOIR",2,2]
["Fleurus-Mame",3,3,null,"YVES DUCOURTIOUX EDITEUR",3,3,null,"Association Anémochorie",2,2]
["ASSELIN, Noël",1,2,null,"Nobi Nobi !",2,2,null,"Ortolan Armanini BEAUSET",1,2]
["Anonyme",2,2,null,"Stade",2,2,null,"Editions de la Grange",2,2]
["Editions Animées",2,2,null,"EDITIONS CRER",2,2,null,"Poetry Wanted",2,2]
["Hatier Editions",2,2,null,"FRAILE MORISSON Monica",2,2,null,"BAYARD JEUNESSE",2,2]
["Pocket",2,2,null,"TROOVE (éditions)",1,2,null,"Editions Play Bac",2,2]
["Editions First",2,2,null,"Centre national des arts du cirque",2,2,null,"JOUVENCE (éditions)",2,2]
["Septéditions",2,2,null,"Eliart",2,2,null,"Usborne publishing",2,2]
["Editions Flammarion",2,2,null,"Cerise bleue",2,2,null,"Editions Des Grandes Personnes",2,2]
["CEDIS Sarl",2,2,null,"Excelsis Sarl",2,2,null,"Muséum-Aquarium de Nancy",2,2]
["D.G Diffusion",2,2,null,"Guy Delcourt Productions",2,2,null,"Béliveau éditeur",2,2]
["Editions Tourbillon/Tornade",2,2,null,"ATELIERS ART TERRE",1,2,null,"ACTUL DECOR",1,2]
["Le Diplodocus",2,2,null,"HarperCollins France SA",2,2,null,"Association couleur cirque",2,2]
["Editions Tutti Frutti",2,2,null,"Love Paper",2,2,null,"Frédéric SINCLAIR-GILLET",1,2]
["Editions Leconte NE PAS UTILISER CETTE FICHE VOIR  Editions A. LECONTE",2,2,null,"Huginn & Muninn / Mediatoon Licensing",2,2,null,"Editions du centre Pompidou",2,2]
["RUTABAGA EDITIONS",2,2,null,"Editions Voy'el",2,2,null,"éditions Orphie",2,2]
["Lumen Christi",2,2,null,"J. M. FUZEAU EDITIONS",1,2,null,"EDITIONS DU STOP",2,2]
["Siranouche Editions",2,2,null,"RVB",2,2,null,"Renaud ALLIRAND",2,2]
["2B2M",2,2,null,"Conseil départemental des Deux-Sèvres, DAG / Service de la Documentation",1,2,null,"EDITIONS EXERGUE",2,2]
["Musée de Tahiti et des Iles",2,2,null,"EPPDCSI-Universcience-CIté des Sciences Editions",2,2,null,"Friville éditions",2,2]
["Books on Demand",2,2,null,"Editions du Livre",2,2,null,"BULFRAN",2,2]
["PIKTOS (groupe éditorial)",1,1,null,"Sky Comm",2,2,null,"Tourbillon / Tornade",2,2]
["DZHACHKOV Martin",1,1,null,"Almora",2,2,null,"Editions Grenouille",2,2]
["Editions Adverse",1,1,null,"Tazas project",1,2,null,"Editions Tourbillon/Tornade",2,2]
["Goré Patrice",1,1,null,"LAURENT Laetitia",2,2,null,"Florence Dautry",2,2]
["Editions Salvator",1,1,null,"Tomawak Editions",2,2,null,"Maison de la Culture du Japon à Paris",1,2]
["Groix Editions et Diffusion",1,1,null,"Dessain et Tolra",2,2,null,"SAS Encre & Numérique / Éditions Animées",1,1]
["Editions ESI",1,1,null,"Editions Des Grandes Personnes",2,2,null,"ASSOCIATION ESCALADE ALSACE",1,1]
["Almora",1,1,null,"LIBELLA",2,2,null,"Editions Animées",1,1]
["ESCAPE AGENCY (THE)",1,1,null,"Fleurus éditions - Marque Fleurus Découvertes",2,2,null,"La p'tite scène qui bouge",1,1]
["BOETTCHER, Michel",1,1,null,"Editions Kaléidoscope",1,1,null,"Pyramyd Editions",1,1]
["Musée du Verre",1,1,null,"Tourbillon / Tornade",1,1,null,"La Vieille Douane",1,1]
["Kallima Editeur",1,1,null,"SLIDE AND CO",1,1,null,"Stade",1,1]
["Editiobs Helvétius",1,1,null,"Color print",1,1,null,"Laetitia CLAVER",1,1]
["Editions Gravrilles",1,1,null,"Editions Vigot",1,1,null,"OFFICE DE TOURISME DE CERGY-PONTOISE PORTE DU VEXIN",1,1]
["HC Editions",1,1,null,"Beuzit Evelyne",1,1,null,"Editions Artège",1,1]
["Editions Catalpas",1,1,null,"Guy TREDANIEL Editeur",1,1,null,"Fleurus éditions - Marque Fleurus Enfants",1,1]
["SAS Encre & Numérique / Éditions Animées",1,1,null,"Ilinx Editions",1,1,null,"ESA",1,1]
["Dargaud-Lombard",1,1,null,"Taschen France",1,1,null,"RVB",1,1]
["Société Cart'Com",1,1,null,"ILLADOR EDITIONS",1,1,null,"Amicale sapeurs pompiers du Grand Rodez",1,1]
["Kilika Editions",1,1,null,"Editions A. LECONTE",1,1,null,"Dom Garcia",1,1]
["Vigot",1,1,null,"IMAV Editions",1,1,null,"Blanchet Thomas Andre",1,1]
["La |Musardine",1,1,null,"Nombre 7 éditions",1,1,null,"Association  \"Les amis du Peintre Henri Zuber\"",1,1]
["Editions Pierre Téqui",1,1,null,"Coloriages et découvertes",1,1,null,"ATELIERGALERIEDITIONS",1,1]
["La joie de lire",1,1,null,"PETITOT Manuella",1,1,null,"AC MEDIA (SOCIETE) LABEL MANA BOOKS",1,1]
["Editions de l'Elan vert",1,1,null,"Editions La Découverte",1,1,null,"Le Grand Livre du Mois",1,1]
["DELON, Mélanie",1,1,null,"Hachette Collections",1,1,null,"Oudin Editions",1,1]
["Editions Sedrap",1,1,null,"Jean-Jacques Moles",1,1,null,"L'ECHAPPEE LIBRE (EDITIONS)",1,1]
["Editions Helen Exley",1,1,null,"Surplie Blandine",1,1,null,"ION",1,1]
["Patrice Rambaud",1,1,null,"Gautier-Languereau",1,1,null,"Les Arts Décoratifs",1,1]
["La p'tite scène qui bouge",1,1,null,"Editions Dervy-Medicis",1,1,null,"Joël DOUILLET",1,1]
["ASSOCIATION SEM",1,1,null,"Editions Gallimard",1,1,null,"LES ECHAPPES",1,1]
["Editions Interprètes",1,1,null,"Éditions du cerf",1,1,null,"EDITEUR DE MEMOIRE",1,1]
["BD Kids",1,1,null,"Editions Loco",1,1,null,"Les Editions Entouca",1,1]
["LBV YVES ROCHER",1,1,null,"Basilique du Rosaire NDL éditions",1,1,null,"Sabaté Beriain Helios",1,1]
["Editions ADA",1,1,null,"EDITIONS GILLETTA NICE MATIN",1,1,null,"Editions Auzou",1,1]
["Le Cherche Midi Editeur",1,1,null,"Nicolas Cabos-Le Grand Manège",1,1,null,"SecondeChance",1,1]
["SecondeChance",1,1,null,"Keribus Editions",1,1,null,"VILLE DE FOUGERES Service des archives",1,1]
["ASSOCIATION  LES AMIS DU PEINTRE HENRI ZUBER",1,1,null,"Office de Tourisme de Saint-Germain-en-Laye",1,1,null,"SOCIETE DES ARCHIVES HISTORIQUES ET DU MUSEE D'USSEL",1,1]
["Ilinx Editions",1,1,null,"YIL Edition - BUNEL Yannick",1,1,null,"Voies Off",1,1]
["L'école des loisirs",1,1,null,"Editions Cipango",1,1,null,"Suzanne DESPREIN",1,1]
["EDITIONS EXLEY",1,1,null,"Centre France Livres",1,1,null,"YIL Edition - BUNEL Yannick",1,1]
["Editions Jaune Citron",1,1,null,"RRose Editions",1,1,null,"La joie de lire",1,1]
["Transmettre",1,1,null,"Ki-Oon",1,1,null,"DE VECCHI (EDITIONS)",1,1]
["Les Editions du Chat qui Pêche",1,1,null,"Sang Dragon",1,1,null,"EDITIONS DU MONT-AILE",1,1]
["Éditions Apeiron",1,1,null,"La |Musardine",1,1,null,"Alain Beaulet éditions",1,1]
["Editions Jets d'Encre",1,1,null,"HACHETTE LIVRE EDUCATION",1,1,null,"Groupe Eyrolles",1,1]
["Editions Philippe Picquier",1,1,null,"LA CLAVIERE EDITIONS",1,1,null,"Ma Petite Crokette",1,1]
["Editions Jour de Nuit",1,1,null,"Fabienne Alliou-Lucas Photographies",1,1,null,"Ikas",1,1]
["Basilique du Rosaire NDL éditions",1,1,null,"La maison est en carton",1,1,null,"Hors Collection",1,1]
["Les trois ourses",1,1,null,"Talent Sport",1,1,null,"Palette...",1,1]
["Nicolas Cabos-Le Grand Manège",1,1,null,"GOUSSOT Jean-Philippe",1,1,null,"AUTOEDITIONS SAUVAGE",1,1]
["Editions La Bruyère",1,1,null,"Fabienne Vereecken",1,1,null,"Christine SANCHEZ",1,1]
["Editions Retz",1,1,null,"La nature d'à côté",1,1,null,"Mairie de Vénissieux",1,1]
["EDITIONS LA VIE DU RAIL",1,1,null,"TITA EDITIONS",1,1,null,"ION EDITIONS",1,1]
["Palette...",1,1,null,"La Plaine des Palmistes, La Réunion",1,1,null,"Ville de Bobigny",1,1]
["LIGUE DE L'ENSEIGNEMENT - SERVICE COMMUNICATION",1,1,null,"Hors Collection",1,1,null,"ARCEAU ILE DE FRANCE",1,1]
["Parent Nanou",1,1,null,"Dehaene Fabien Editeur",1,1,null,"Gautier-Languereau",1,1]
["Editions Le Chineur",1,1,null,"Editions du cyclone",1,1,null,"FCB SAJOU",1,1]
["Association Art et couleurs",1,1,null,"Biblio-Scriptura-Société biblique française",1,1,null,"Editions Jets d'Encre",1,1]
["Line et Nanou",1,1,null,"Editions Tutti Frutti",1,1,null,"Filigranes Editions",1,1]
["Pika Edition",1,1,null,"Editions du Triomphe",1,1,null,"Marcel et Joachim",1,1]
["L'Intention Publique",1,1,null,"Editions ArtLys",1,1,null,"Reunion des Musées Nationaux",1,1]
["HAGENMULLER, Bertrand",1,1,null,"LAFON Caroline",1,1,null,"MARTEAU Patrick",1,1]
["Editions Contre-dires",1,1,null,"MUSEE HISTORIQUE DE VILLELE",1,1,null,"S.A.S. I",1,1]
["POLYSTYRÈNE (ÉDITIONS)",1,1,null,"Bragelonne Editions",1,1,null,"MARTINEZ Sandra",1,1]
["Love Paper",1,1,null,"Fleurus éditions - Marque Mango Art de Vivre",1,1,null,"SABINE & SES COPAINS",1,1]
["Rafael de Surtis Editions",1,1,null,"DELON, Mélanie",1,1,null,"Matkaline",1,1]
["Editions Les Presses Littéraires",1,1,null,"Fleurus éditions - Marque Rustica Editions",1,1,null,"Coloriages et découvertes",1,1]
["Robert Laffont",1,1,null,"Laurence Domenech",1,1,null,"MAUVAISE FOI EDITIONS",1,1]
["Chantecler France",1,1,null,"Aceascope Formascope",1,1,null,"ASSOCIATION BOB THEATRE",1,1]
["Editions Voyage Nocturne",1,1,null,"Avignon Festival et Compagnies",1,1,null,"Médiathèque Divatte-sur-Loire",1,1]
["Editions Librairie baha'ie de France",1,1,null,"CAUE 79",1,1,null,"Kilika Editions",1,1]
["Samarlande  Diffusion",1,1,null,"éditions Orphie",1,1,null,"Fondation Vincent van Gogh Arles",1,1]
["Editions de la Martinière",1,1,null,"Centre d'art contemporain de Basse-Normandie",1,1,null,"Editions Soleil",1,1]
["Editions Yot-Art (Galerie Roi doré)",1,1,null,"Le Courrier du Livre jeunesse",1,1,null,"Editions Jos le Doaré",1,1]
["Editions Auzou",1,1,null,"Elsa Brachet",1,1,null,"Station Thermale Avène",1,1]
["ICHARACTER LTD",1,1,null,"Leers historique",1,1,null,"Frac Reunion",1,1]
["Maison de l'Architecture et des Espaces en Bretagne",1,1,null,"RUTABAGA EDITIONS",1,1,null,"Galerie 14-14",1,1]
["SIC",1,1,null,"Graphica",1,1,null,"Michel Monnier",1,1]
["Descat Caroline",1,1,null,"SABINE & SES COPAINS",1,1,null,"Ti Raconteur",1,1]
["Skol Vreizh",1,1,null,"Les Editions du Net",1,1,null,"AMISTAD PROD",1,1]
["EDITIONS MEMO",1,1,null,"SARL LIGHT MOTIV",1,1,null,"Transmettre",1,1]
["Splash !",1,1,null,"Yan DE SIBER Atelier d'Art",1,1,null,"Morgane PARISI",1,1]
["Amis de Van Editions",1,1,null,"Benoît HOREN",1,1,null,"Atelier MDS",1,1]
["EPPDCSI-Universcience-CIté des Sciences Editions",1,1,null,"Les Piérides",1,1,null,"Centre national des arts du cirque",1,1]
["Camille DEWILDE",1,1,null,"Chrisitan Bourgeois éditeur",1,1,null,"MUSEE DE LA FAÏENCE ET DES BEAUX-ARTS DE NEVERS",1,1]
["Tourbillon / Tornade",1,1,null,"Brigitte Grit",1,1,null,"Cartophiles et historiens tarnais",1,1]
["Messageries ADP - Interforum",1,1,null,"Editions de l'Elan vert",1,1,null,"Yaka Books Editions",1,1]
["Univers partagés éditions",1,1,null,"Editions du Trainailleur",1,1,null,"Editions Gründ",1,1]
["Michel Lafon Publishing",1,1,null,"CITADELLES & MAZENOD",1,1,null,"Yogamini formation",1,1]
["Violette and Lulu",1,1,null,"Librairie L'Atalante",1,1,null,"CAIRN EDITIONS",1,1]
["AMIS DES BISQUINES ET DU VIEUX CANCALE",1,1,null,"Suzanne DESPREIN",1,1,null,"COMITE INTERPROFESSIONNEL DU GRUYERE DE COMTE",1,1]
["ITF IMPRIMEURS",1,1,null,"Bulle d'Espoir",1,1,null,"Lucien ARLAUD",1,1]
["MICHELLE VAN HOOLAND",1,1,null,"Taquet Christian",1,1,null,"Editions Voy'el",1,1]
["Editions Carmina",1,1,null,"Association Aïda",1,1,null,"Lumen Christi",1,1]
["Editions Love paper",1,1,null,"AGENCE REGIONALE DE SANTE ÎLE-DE-FRANCE",1,1,null,"Total",{"$f":"SUM(J6:J237)","v":2111},{"$f":"SUM(K6:K237)","v":7601}]
["Total",{"$f":"SUM(B6:B238)","v":1693},{"$f":"SUM(C6:C238)","v":5320},null,"Groupe Eyrolles",1,1]
[null,null,null,null,"FÉDÉRATION FRANÇAISE D'ÉQUITATION",1,1]
[null,null,null,null,"AVM/Editions de l'Emmanuel",1,1]
[null,null,null,null,"404 Editions",1,1]
[null,null,null,null,"EDITEUR DE MEMOIRE",1,1]
[null,null,null,null,"Collet Aurélie - Les éditions Com'il faut !",1,1]
[null,null,null,null,"Mairie de Bouguenais",1,1]
[null,null,null,null,"hipszman Rachel",1,1]
[null,null,null,null,"Editions Salvator",1,1]
[null,null,null,null,"Vente-privée.com",1,1]
[null,null,null,null,"Editions Sedrap",1,1]
[null,null,null,null,"VILLE DE LORIENT -  ARCHIVES MUNICIPALES",1,1]
[null,null,null,null,"Association l'Oeuf",1,1]
[null,null,null,null,"Fleurus éditions - Marque Fleurus Family",1,1]
[null,null,null,null,"Editions Dupuis",1,1]
[null,null,null,null,"Amaterra",1,1]
[null,null,null,null,"Albouraq",1,1]
[null,null,null,null,"Kilika Editions",1,1]
[null,null,null,null,"Total",{"$f":"SUM(F6:F256)","v":2095},{"$f":"SUM(G6:G256)","v":8971}]
[]
["Nombre de documents déposés répartis par tranche de tirage"]
[]
[null,2016,2017,2018]
["Moins de 1000",{"$f":"326+219+218+64+43+42+37+27+23+12+12+10+10+9+8+4+2+1+1+1+1+1+1+1+1","v":1074},849,1202]
["1001 - 5000",956,2033,745]
["5001 - 10000",{"$f":"334+48+42+33+31+17+7+3+3+2+2+2+2+2+1+1+1+1+1+1+1+1+1+1+1+1+1+1+1+1+1+1+1+1","v":548},676,538]
["10001 - 25000",{"$f":"81+78+34+30+27+26+25+20+19+17+14+9+6+4+2+2+2+2+2+2+1+1+1+1+1+1+1+1+1+1+1+1+1+1+1+1+1+1+1+1+1+1+1+1+1+1+1","v":429},348,308]
["25001 et plus",{"$f":"20+13+9+6+4+3+2+2+2+2+2+2+2+2+1+1+1","v":74},52,16]
["Non précisé",2239,5013,4792]
["Total",{"$f":"SUM(B262:B267)","v":5320},{"$f":"SUM(C262:C267)","v":8971},{"$f":"SUM(D262:D267)","v":7601}]
[]
[]
[]
["Catégories de déposants - Imagerie"]
[]
[null,2016,null,2017,null,2018]
[null,"Nb de déposants","Nb de documents déposés","Nb de déposants","Nb de documents déposés","Nb de déposants","Nb de documents déposés"]
["Associations et assimilés",20,296,16,105,23,163]
["Auteurs auto-édités",32,359,38,247,37,421]
["Collectivités publiques",9,352,18,278,21,402]
["Editeurs professionnels",151,4084,157,8056,130,6363]
["Editeurs étrangers",8,161,8,223,6,214]
["Diffuseurs",4,11,2,14,3,16]
["Galeries",null,null,1,1,2,2]
["Imprimeurs professionnels",2,21,2,2,1,2]
["Sociétés et assimilés",7,36,9,45,9,18]
["Total",{"$f":"SUM(B276:B284)","v":233},5320,251,8971,232,7601]
[]
[]
[]
[]
["Nombre de déposants par localisation géographique - Imagerie"]
[]
["Département","Nb déposants 2016","Nb déposants 2017","Nb déposants 2017"]
["Ain"]
["Aisne",null,1]
["Allier",1]
["Alpes-de-Haute-Provence",1,1,1]
["Hautes-Alpes",null,1]
["Alpes-Maritimes",2,3,2]
["Ardèche",2,1,2]
["Ariège",null,null,1]
["Aube",null,null,1]
["Aude",1,null,2]
["Aveyron",1,null,4]
["Bouches-du-Rhône",3,4,7]
["Calvados",null,2,2]
["Cantal",1,1]
["Charente",2,2,5]
["charente-Maritime",null,2,2]
["Cher",2,1,1]
["Corrèze",1,1,2]
["Haute-Corse"]
["Corse-du-Sud"]
["Côte-d'Or",1,2,1]
["Côtes-d'Armor",3,1,1]
["Creuse"]
["Dordogne",null,1,1]
["Doubs",1,1,1]
["Drôme",1,2]
["Eure",2]
["Eure-et-Loire"]
["Finistère",4,4,4]
["Gard",4,5,5]
["Haute-Garonne",10,8,6]
["Gers",null,null,1]
["Gironde",5,2,2]
["Hérault",2,2,2]
["Ille-et-Vilaine",8,7]
["Ille-et-Vilaine",null,null,8]
["Indre"]
["Indre-et-Loire",2,1]
["Isère",1,3,4]
["Jura",null,null,1]
["Landes",1,1,1]
["Loire",1]
["Haute-Loire"]
["Loire-Atlantique",7,4,3]
["Loiret",null,1,3]
["Loir-et-Cher",2,1]
["Lot",1]
["Lot-et-Garonne"]
["Maine-et-Loire",null,1]
["Manche",2]
["Marne",null,1,1]
["Haute-Marne"]
["Mayenne",null,1,2]
["Meurthe-et-Moselle",null,null,1]
["Meuse",1,1,1]
["Morbihan",3,1]
["Moselle",1]
["Nièvre",null,1,1]
["Nord",4,6,1]
["Oise",2,1,1]
["Orne",1,2,1]
["Pas-de-Calais",2,null,1]
["Puy-de-Dôme",3,5,6]
["Pyrénées-Atlantiques",2,2,4]
["Hautes-Pyrénées",3,2,1]
["Pyrénées-Orientales",2,1,3]
["Bas-Rhin",2,3,2]
["Haut-Rhin",null,null,1]
["Rhône",2,3,3]
["Saône-et-Loire",1,1]
["Sarthe",3]
["Savoie",1,2,3]
["Haute-Savoie",1,2,3]
["Seine-Maritime",null,1]
["Deux-Sèvres",2,3,1]
["Somme",null,1,1]
["Tarn",1,1,2]
["Tarn-et-Garonne",null,1]
["Var",1,2,1]
["Vaucluse",null,2]
["Vendée"]
["Vienne",1,2,1]
["Haute-Vienne",2,null,1]
["Vosges",1,1,1]
["Yonne"]
["Territoire de Belfort",1]
["Essonne",2,3,1]
["Hauts-de-Seine",6,7,8]
["Paris",83,93,76]
["Seine-et-Marne",null,2,2]
["Val-de-Marne",8,4,5]
["Val-d'Oise",null,2,1]
["Seine-Saint-Denis",3,4,2]
["Yvelines",1,4,2]
["Martinique"]
["Mayotte",null,1]
["La Réunion",1,7,6]
["Guadeloupe",null,null,1]
["Nouvelle-Calédonie"]
["Terres Australes et Antartiques Françaises"]
["Polynésie française",1]
["Editeurs étrangers diffusant en France",7,8,6]
["Total",{"$f":"SUM(B293:B394)","v":230},{"$f":"SUM(C293:C394)","v":251},{"$f":"SUM(D293:D394)","v":230}]
[]
["Nombre de documents par nature - Secteur Imagerie"]
[]
["Nature de documents",2016,2017,2018]
["Carte postale (10,5 x 15 cm)",1509,3574,3171]
["Jeu ou élément de jeu",55,17,8]
["Album à colorier",731,634,781]
["Planche de Kamishibai",541]
["Kamishibaï",null,53,29]
["Carte à jouer, carte de tarot",943,967,375]
["Carte de fantaisie",333,847,1586]
["Autocollant/Album d'autocollants",275,308,446]
["Calendrier illustré (inclus calendrier \nperpétuel, calendrier de l'avent)",138,890,414]
["Bon point",200,1050]
["Jeu de bon point",null,null,1]
["Carte de voeux",82,80,47]
["Image à découper (albums et planches)",54,50,226]
["Poster",32,40,145]
["Album et planche de \nReproduction d'œuvre",91,101,215]
["Set de table illustré",7,42]
["Marque-page",49,35,49]
["Panneau pédagogique",16,36,12]
["Livre d'activités liées à l'image",48,142,24]
["Carton d'invitation",6,17,18]
["Carte publicitaire",19,39,24]
["Livre d'images (livre accordéon…)",9,1,8]
["Matériel didactique (modèle)",null,7]
["Livre animé (Flip-book)",15,null,1]
["Imagerie religieuse",39,40]
["Puzzle",3,1]
["Alphabet",20]
["Image didactique",105,null,21]
["Total général",{"$f":"SUM(B400:B427)","v":5320},{"$f":"SUM(C400:C427)","v":8971},{"$f":"SUM(D400:D427)","v":7601}]

{"sheet":"Affiche","index":2,"n_rows":135,"n_cols":11,"rows_kept":135,"cut":false,"hidden":false,"merged":[]}
[]
["Liste des déposants éditeurs par année de dépôt - Affiche"]
[]
[null,2016,null,null,null,2017,null,null,null,2018]
["Nom déposant","Nb dépôts","Documents déposés",null,"Nom déposant","Nb dépôts","Documents déposés",null,"Nom déposant","Nb dépôts","Documents déposés"]
["Opéra National de Bordeaux",135,135,null,"Ville de Besançon",118,118,null,"Ville de Besançon",538,557]
["Bibliothèque nationale de France. Délégation à la communication",12,18,null,"Opéra national de Paris (Secrétariat général)",35,35,null,"Opéra national de Paris (Secrétariat général)",22,44]
["Musée de Morlaix",7,15,null,"Ville de Bobigny",22,22,null,"Sante Publique France. Ministère chargé de la santé. DADP / STSD",1,27]
["Michel Boettcher",15,15,null,"Tazasproject",20,20,null,"Ville de Bobigny",25,25]
["Ville de Bobigny",14,15,null,"Ville de Castres",18,18,null,"Tazasproject",13,13]
["BPCE-DDBP",13,13,null,"Bibliothèque nationale de France. Délégation à la communication",9,13,null,"Agence régionale de santé Ile-de-France",8,9]
["Opéra national de Paris (Secrétariat général)",12,12,null,"Conseil général des Deux-Sèvres",3,7,null,"Ministère de la transition écologique et solidaire. Direction de la communication (DICOM)",4,9]
["Ville de Besançon",11,11,null,"Maison de la culture du Japon à Paris",5,5,null,"Bibliothèque nationale de France. Délégation à la communication",5,8]
["Musée de l'image",6,6,null,"La comédie de Reims",5,5,null,"Le Brady Cinéma Théâtre",2,7]
["GECPAL - Groupe d'étude pour la conservation du patrimoine de la Losteau ",2,6,null,"GECPAL - Groupe d'étude pour la conservation du patrimoine de la Losteau",1,4,null,"Michel Boettcher",7,7]
["Syndicat mixte du parc régional de l'Avesnois",1,3,null,"Conseil départemental de la Nièvre, Direction des Archives départementales",4,4,null,"Opéra National de Bordeaux",5,5]
["Centre national des arts du cirque",2,3,null,"Deutsches Historisches Institut Paris - Institut historique allemand",2,3,null,"Direction générale des douanes et droits indirects",2,5]
["Maison de la culture du Japon à Paris",3,3,null,"Agence régionale de santé Ile-de-France",3,3,null,"Syndicat mixte du parc régional de l'Avesnois",2,3]
["Les trois ourses",1,2,null,"Roussot, Alban",1,2,null,"Communauté de communes Creuse Sud Ouest",2,3]
["Conseil général de la Loire",2,2,null,"Syndicat mixte du parc régional de l'Avesnois",1,2,null,"UNESCO",1,3]
["Tazasproject",2,2,null,"Centre national des arts du cirque",2,2,null,"Conseil départemental du Puy-de-Dôme",1,2]
["Comité catholique contre la faim et pour le développement",1,1,null,"Comité catholique contre la faim et pour le développement",2,2,null,"Conseil départemental de la Nièvre, Direction des Archives départementales",2,2]
["Palais de l'Institut de France - Académie des Beaux - Arts",1,1,null,"Conseil départemental du Puy-de-Dôme",2,2,null,"Monastère Royal de Brou",1,2]
["Direction des archives et du patrimoine mobilier de l'Essonne",1,1,null,"M. Yan de Siber",2,2,null,"CNRS Midi-Pyrénées",1,2]
["Les éditions de l'impliqué",1,1,null,"Michel Boettcher",2,2,null,"Maison de la culture du Japon à Paris",2,2]
["Fédération française d'études et de sports sous-marins",1,1,null,"Opéra National de Bordeaux",2,2,null,"Domaine départemental de la Roche Jagu",1,2]
["Direction générale des douanes et droits indirects",1,1,null,"Société historique, archéologique et scientifique de Noyon",1,1,null,"Centre national des arts du cirque",1,1]
["Conseil général des Deux-Sèvres",1,1,null,"Association Art et couleurs",1,1,null,"Benoit GUIT",1,1]
["Institut national d'histoire de l'art",1,1,null,"Association pour l'éducation thérapeutique en Alsace",1,1,null,"Ministère de la cohésion des territoires et des Relations avec les collectivités territoriales",1,1]
["Association Art et couleurs",1,1,null,"Inclood SAS",1,1,null,"Ville de Reims",1,1]
["La comédie de Reims",1,1,null,"Atelier national de recherche typographique",1,1,null,"ONISEP",1,1]
["Total",{"$f":"SUM(B6:B31)","v":248},{"$f":"SUM(C6:C31)","v":271},null,"ONISEP Nouvelle - Aquitaine - Site de Poitiers",1,1,null,"Festival du Périgord Noir",1,1]
[null,null,null,null,"Ti-embrann ar Skolioù",1,1,null,"ONISEP Nouvelle - Aquitaine - Site de Poitiers",1,1]
[null,null,null,null,"Total",{"$f":"SUM(F6:F33)","v":266},{"$f":"SUM(G6:G33)","v":280},null,"Total",{"$f":"SUM(J6:J33)","v":652},{"$f":"SUM(K6:K33)","v":744}]
[]
[]
[]
["*Dépôts multiples arrivés dans différents services de la BnF, versés et enregistrés par lot au département des Estampes et de la photographie"]
[]
[]
[]
[]
[]
["Liste des déposants imprimeur en région par année de dépôt -  Affiche (Collecteurs d'affiches dans les régions hors métropole reversant l'exemplaire excédentaire à la BnF)"]
[null,null,null,null,null,null,null,null,null,2018]
[null,2016,null,null,null,2017,null,null,"Nom collecteur","Nb dépôts","Documents déposés"]
["Nom collecteur","Nb dépôts","Documents déposés",null,"Nom collecteur","Nb dépôts","Documents déposés",null,"Bibliothèque départementale de la Réunion",2,212]
["Bibliothèque départementale de Saint-Denis-de-la-Réunion",1,166,null,"Bibliothèque Bernheim de Nouméa",2,26,null,"Médiathèque centrale d'agglomération Emile Zola",2,102]
["Bibliothèque Bernheim de Nouméa",1,105,null,"Archives départementales de la Guadeloupe",1,25,null,"Archives départementales de la guadeloupe",1,45]
["Total",{"$f":"SUM(B48:B49)","v":2},{"$f":"SUM(C48:C49)","v":271},null,"Total",{"$f":"SUM(F48:F49)","v":3},{"$f":"SUM(G48:G49)","v":51},null,"Bibliothèque Bernheim de Nouméa",1,6]
[null,null,null,null,null,null,null,null,"Total",{"$f":"SUM(J47:J50)","v":6},{"$f":"SUM(K47:K50)","v":365}]
[]
["Catégories de déposants - Affiche"]
[]
[null,2016,null,2017,null,2018]
[null,"Nb de déposants","Nb de documents déposés","Nb de déposants","Nb de documents déposés","Nb de déposants","Nb de documents déposés"]
["Administration centrale",1,1,null,null,2,10]
["Associations et assimilés",6,11,8,35,8,25]
["Auteurs auto-édités",1,15,2,4,2,8]
["Collectivités publiques",15,496,14,278,19,1059]
["Editeurs professionnels",2,4,2,4]
["Editeurs étrangers"]
["Galeries"]
["Sociétés savantes et de Recherche",1,1,2,4]
["Sociétés et assimilés",2,14,2,6,1,7]
["Total",{"$f":"SUM(B57:B65)","v":28},{"$f":"SUM(C57:C65)","v":542},{"$f":"SUM(D58:D65)","v":30},{"$f":"SUM(E58:E65)","v":331},{"$f":"SUM(F57:F65)","v":32},{"$f":"SUM(G57:G65)","v":1109}]
[]
[]
["Nombre de documents déposés répartis par tranche de tirage"]
[]
[null,2016,2017,2018]
["1-100",{"$f":"1+2+2+2+11+1+1+8+2+1+1+2+1","v":35},{"$f":"3+7+1+7+3+33+3+2+15","v":74},251]
["101-500",11,54,204]
["501-1000",17,{"$f":"1+2+1+3","v":7},46]
["1001 et plus",{"$f":"1+1+1+1+1","v":5},{"$f":"1+3+1+1+1+2+3+1+1+2+1+2+1","v":20},101]
["Non précisé",{"$f":"203+271","v":474},176,507]
["Total",{"$f":"SUM(B72:B77)","v":542},{"$f":"SUM(C72:C77)","v":331},{"$f":"SUM(D72:D76)","v":1109}]
[]
[]
[]
["Nombre de déposants par localisation géographique - Affiche"]
[]
["Département","Nb déposants 2016","Nb déposants 2017","Nb déposants 2018"]
["Paris",8,7,9]
["Essonne",2,1,1]
["Seine-et-Marne",null,null,1]
["Seine-Saint-Denis",2,1,2]
["Val-de-Marne",null,null,1]
["Yvelines",null,1]
["Ain",null,null,1]
["Bouches-du-Rhône",1]
["Côtes-d'Armor",null,1,1]
["Creuse",null,null,1]
["Dordogne",null,null,1]
["Doubs",1,1,1]
["Finistère",1]
["Gironde",2,3,1]
["Haute-Garonne",1,1,2]
["Hérault",1,null,1]
["Loire",1]
["Marne",2,2,2]
["Meurthe-et-Moselle",null,1]
["Nièvre",null,1,1]
["Nord",1,1,1]
["Oise",null,1]
["Puy-de-Dôme",null,1,1]
["Bas-Rhin",null,1]
["Deux-Sèvres",1,1]
["Tarn",null,1]
["Vienne",null,1,1]
["Vosges",1]
["Guadeloupe",1,1]
["Total",{"$f":"SUM(B80:B112)","v":26},{"$f":"SUM(C80:C112)","v":28},{"$f":"SUM(D84:D112)","v":29}]
[]
["départements collecteurs",2017,2017,2018]
["Guadeloupe",1,1,1]
["La Réunion",null,null,1]
["Nouvelle-Calédonie",1,1]
["Guyane",null,null,1]
["Total",{"$f":"SUM(B116:B119)","v":2},{"$f":"SUM(C116:C119)","v":2},{"$f":"SUM(D116:D119)","v":3}]
[]
[]
["Nombre de documents par nature - Secteur Affiche"]
[]
["Nature de documents",2016,2017,2018]
["Affiche",537,298,836]
["Travaux graphiques",4,24]
["Images publicitaires",null,null,247]
["Panneau didactique"]
["Poster",5]
["Carte postale d'artiste",null,5,13]
["Carte d'invitation",null,null,13]
["Carte de fantaisie",null,3]
["Calendrier",null,1]
["Total",{"$f":"SUM(B126:B130)","v":546},{"$f":"SUM(C126:C134)","v":331},{"$f":"SUM(D126:D134)","v":1109}]

{"sheet":"Estampe","index":3,"n_rows":111,"n_cols":11,"rows_kept":111,"cut":false,"hidden":false,"merged":[]}
[]
["Liste des déposants par année de dépôt - Estampe"]
[]
[null,2016,null,null,null,2017,null,null,null,2018]
["Nom déposant","Nb dépôts","Documents déposés",null,"Nom déposant","Nb dépôts","Documents déposés",null,"Nom déposant","Nb dépôts","Documents déposés"]
["URDLA Centre international estampe & livre",62,87,null,"Allirand Renaud",54,54,null,"Idem",201,201]
["NEYROD Dominique",45,45,null,"URDLA Centre international estampe & livre",48,48,null,"Ortiz, Jean-François",2,24]
["Editions Anagraphis",36,36,null,"Maillard Maurice",23,23,null,"URDLA Centre international estampe & livre",23,23]
["Atelier le Grand Village",20,29,null,"Galerie Lelong",14,14,null,"GOUTTEFANJAT Patrice",21,21]
["CLEEREN Luce",28,28,null,"RUIZ",13,13,null,"Atelier le Grand Village",16,16]
["MALDAGUE Nicolas",1,22,null,"Pazot Brigitte",12,12,null,"Gohier Anne",10,10]
["Le Dernier Cri",1,22,null,"Editions du Trainailleur",1,12,null,"VANDRISSE Christine - Les Editions d'Emerence",1,9]
["Galerie Lelong",21,21,null,"L'Estampe Strasbourg",11,11,null,"Texier Carole",7,7]
["LAFABRIE Bernard Gabriel",20,20,null,"Atelier le Grand Village",11,11,null,"GOUX Claudine",7,7]
["DUBART Agnès",4,17,null,"Réseau des médiathèques de la Communauté d'Agglomération Hérault-Méditérranée",7,7,null,"Réseau des médiathèques de la Communauté d'Agglomération Hérault-Méditérranée",6,6]
["Astrid de La Forest",15,15,null,"ABELANET Sylvie",6,6,null,"RUIZ",5,5]
["PICARD Jean-Marie",15,15,null,"MARTIN Edouard",5,5,null,"Benard Elise",4,4]
["GOUTTEFANJAT Patrice",12,12,null,"Piketty",5,5,null,"Douillard Nathalie",4,4]
["GASSER Françoise",12,12,null,"DUBART Agnès",5,5,null,"Colin Judith",4,4]
["BEALU François",1,9,null,"Galerie LEIZOROVICI",4,4,null,"Centre d'Art Contemporain Ateliers de l'Imprimé",4,4]
["DORMONT Eric",9,9,null,"Baltar Mireille",4,4,null,"LAFON Martine",3,3]
["ECOLE SUPERIEURE DES BEAUX-ARTS DE NANTES METROPOLE",8,8,null,"Guillaume Elsa",4,4,null,"Manufacture d'images",3,3]
["Centre d'Art Contemporain Ateliers de l'Imprimé",5,5,null,"La Gravure originale",4,4,null,"Lalouette Jean-Claude",3,3]
["ROUILLY LE CHEVALLIER Marie-Antoinette",4,4,null,"Le Petit Jaunais",3,3,null,"AUTHOUART Daniel",2,2]
["AUTHOUART Daniel",4,4,null,"Manufacture d'images",2,2,null,"Chavignot Pierre",2,2]
["Lê Laureline",4,4,null,"LEROY-GARIOUD Françoise",2,2,null,"LE BAIL Loïc",2,2]
["LEROY-GARIOUD Françoise",3,3,null,"PESCHEUX, Marion",1,1,null,"Galerie LEIZOROVICI",1,1]
["DUPONT Albert ",2,2,null,"DUPONT Albert",1,1,null,"Laszlo Jean-Noël",1,1]
["Musée de Gravelines",1,1,null,"Bibliothèque Forney",1,1,null,"DUBART Agnès",1,1]
["BLANQUET Stéphane",1,1,null,"GSN Galerie",1,1,null,"Item",1,1]
["Mairie de Lorient - Service culturel",1,1,null,"Total",{"$f":"SUM(F6:F30)","v":242},{"$f":"SUM(G6:G30)","v":253},null,"Kazan",1,1]
["MAURE Rémy",1,1,null,null,null,null,null,"Association Juste Ici",1,1]
["Total",{"$f":"SUM(B6:B32)","v":336},{"$f":"SUM(C6:C32)","v":433},null,null,null,null,null,"Totzl",{"$f":"SUM(J6:J32)","v":336},{"$f":"SUM(K6:K32)","v":366}]
[]
["Source : Entrées dépôt légal"]
[]
[]
[]
[]
["Nombre de documents déposés répartis par tranche de tirage"]
[]
["Tranche de tirage",2016,2017,2018]
["Non précisé",null,null,49]
["1 - 10",150,108,23]
["11 - 20",144,82,99]
["21 - 30",58,33,36]
["31 - 50",48,11,72]
["51 - 100",24,4,46]
["101 - 300",6,3,37]
["301 et plus",3,12,4]
["Total",{"$f":"SUM(B44:B50)","v":433},{"$f":"SUM(C44:C50)","v":253},{"$f":"SUM(D43:D50)","v":366}]
[]
[]
["Catégories de déposants - Estampe"]
[]
[null,2016,null,2017,null,2018]
["Catégories","Nb de déposants","Nb de documents déposés","Nb de déposants","Nb de documents déposés","Nb de déposants","Nb de documents déposés"]
["Associations et assimilés",null,null,1,2,2,4]
["Auteurs auto-édités",16,210,13,135,17,89]
["Collectivités publiques",4,15,2,8,2,10]
["Editeurs professionnels",3,59,4,30,1,1]
["Imprimeurs professionnels",3,128,2,59,4,261]
["Galeries",1,21,3,19,1,1]
["Total",{"$f":"SUM(B58:B63)","v":27},433,25,253,27,366]
[]
[]
["Nombre de déposants par localisation géographique - Estampe"]
[]
["Département","Nb déposants 2016","Nb déposants 2017","Nb déposants 2018"]
["Paris",8,8,10]
["Hauts-de-Seine",2,2]
["Seine-Saint-Denis",null,1]
["Val-de-Marne",1,3,1]
["Val-d'Oise",null,null,1]
["Yvelines",2,1]
["Alpes-Maritimes",null,null,1]
["Aveyron",1]
["Bouches-du-Rhône",1]
["Charente",1,1,1]
["Charente-Maritime",null,null,1]
["Corrèze",null,1,1]
["Côtes-d'Armor",1]
["Doubs",null,null,1]
["Eure",1,1]
["Hérault",2,1,1]
["Jura",1,null,1]
["Loire-Atlantique",1,1]
["Lot-et-Garonne",1]
["Morbihan",1,null,1]
["Nord",2,1,2]
["Puy-de-Dôme",null,1,1]
["Pyrénées-Atlantiques",null,1]
["Bas-Rhin",null,1]
["Rhône",1,1,1]
["Seine-Maritime",1,null,1]
["Var",null,null,1]
["Vienne",1,null,1]
["Total",{"$f":"SUM(B70:B97)","v":29},{"$f":"SUM(C70:C97)","v":25},{"$f":"SUM(D70:D97)","v":27}]
[]
[]
["Nombre de documents par nature - Estampe"]
[]
["Nature de documents",2016,2017,2018]
["Estampe originale",341,241,330]
["Portfolio d'estampes*",69,12,33]
["Carte à jouer**",22]
["Affiche",1]
["Ephemera d'artiste (flyers, ex-libris, bloc note…)",null,null,3]
["Total",{"$f":"SUM(B104:B108)","v":433},{"$f":"SUM(C104:C108)","v":253},{"$f":"SUM(D104:D108)","v":366}]
["*Nombre d'estampes parues sous portfolio"]
["**Nombre de cartes dans 1 jeu"]

{"sheet":"Livre d'artiste Livre graphique","index":4,"n_rows":87,"n_cols":11,"rows_kept":87,"cut":false,"hidden":false,"merged":[]}
[]
["Liste des déposants par année de dépôt - Livre d'artiste, livre graphique"]
[]
[]
[null,2016,null,null,null,2017,null,null,null,2018]
["Nom déposant","Nb dépôts","Documents déposés",null,"Nom déposant","Nb dépôts","Documents déposés",null,"Nom déposant","Nb dépôts","Documents déposés"]
["Le Dernier Cri",26,26,null,"CLERC Philippe",18,18,null,"Le Dernier Cri",14,14]
["CLERC Philippe",1,15,null,"Les éditons du nain qui tousse",10,10,null,"Association Juste Ici",14,14]
["BLANQUET Stéphane",10,10,null,"Le Dernier Cri",9,9,null,"Pagni Gianpaolo",10,10]
["Editions Solo ma non troppo",5,5,null,"Editions Incertain Sens",5,5,null,"Escande Ghislaine",9,9]
["Mekanik copulaire",5,5,null,"Edition Le petit jaunais",5,5,null,"CHAMCHINOV Serge",6,6]
["Editions Incertain Sens",4,4,null,"Editions Solo ma non troppo",5,5,null,"Christophe daviet-théry éditions et livres d'artistes",4,4]
["LAFABRIE Bernard Gabriel",4,4,null,"Manufacture d'images - Centre culturel le bief",3,3,null,"Le Petit Jaunais",3,3]
["CHAMCHINOV Serge",4,4,null,"Lorem Ipsum",2,2,null,"Editions Incertain Sens",2,2]
["Graisse animale",3,3,null,"Musée de Gravelines",2,2,null,"Editions Gasoline",2,2]
["GUERCHET-JEANNIN Pierre",2,2,null,"Editions du Trainailleur",2,2,null,"Editions Solo ma non troppo",2,2]
["Le Petit Jaunais ",2,2,null,"CARRE Benoît",2,2,null,"Haute école des arts du Rhin",1,1]
["Association Fauteuil Vapeur",2,2,null,"Mesguich Stéphane",1,1,null,"Le Grand Tetra",1,1]
["Editions Journaud",2,2,null,"Mennefile Caroline",1,1,null,"Laurence Dumaine Calle",1,1]
["REPRO DU LEMAN",1,1,null,"Christophe daviet-théry éditions et livres d'artistes",1,1,null,"Savoye Etienne",1,1]
["Atelier Sabordage",1,1,null,"GIRAUDON",1,1,null,"Allemane Olivier",1,1]
["Lézard Actif Editions",1,1,null,"Editions ju-young Kim",1,1,null,"Editions Terrain Vague",1,1]
["Association POLLEN",1,1,null,"Association Pollen",1,1,null,"Total",{"$f":"SUM(J7:J22)","v":72},{"$f":"SUM(K7:K22)","v":72}]
["Palais de Tokyo",1,1,null,"Association Fauteuil Vapeur",1,1]
["Centre des livres d'artistes",1,1,null,"Total",{"$f":"SUM(F7:F24)","v":70},{"$f":"SUM(G7:G24)","v":70}]
["ECOLE SUPERIEURE D'ART D'AIX-EN-PROVENCE",1,1]
["Atelier Catherine André",1,1]
["Total",{"$f":"SUM(B7:B27)","v":78},{"$f":"SUM(C7:C27)","v":92}]
[]
["Nombre de déposants par localisation géographique - livre d'artiste, livre graphique"]
[]
["Département",2016,2017,2018]
["Paris",6,4,4]
["Yvelines",1,1]
["Seine-Saint-Denis",null,1,1]
["Val-de-Marne",null,1,2]
["Aveyron",1]
["Bouches-du-Rhône",2,1,2]
["Charente",null,null,1]
["Doubs",null,null,2]
["Gironde",1]
["Ille-et-Vilaine",1,2,1]
["Loire-Atlantique",1,1,1]
["Lot-et-Garonne",1,1]
["Manche",1,null,1]
["Nord",2,1]
["Puy-de-Dôme",null,1]
["Bas-Rhin",3,2,1]
["Vendée",null,1]
["Haute-Vienne",1]
["Yonne",null,1]
["Total",{"$f":"SUM(B33:B51)","v":21},{"$f":"SUM(C33:C51)","v":18},{"$f":"SUM(D33:D51)","v":16}]
[]
[]
[]
["Nombre de documents déposés répartis par tranche de tirage"]
[]
["Tranche de tirage",2016,2017,2018]
["Non précisé",31,25,8]
["1 - 10",11,0,1]
["11 - 20",5,2,4]
["21 - 30",0,10,4]
["31 - 50",2,1,5]
["51 - 100",6,6,15]
["101 - 300",23,15,29]
["301 et plus",14,11,6]
["Total",{"$f":"SUM(B59:B66)","v":92},{"$f":"SUM(C59:C66)","v":70},{"$f":"SUM(D59:D66)","v":72}]
[]
[]
["Catégories de déposants - Livre d'artiste, livre graphique"]
[]
[null,2016,null,2017,null,2018]
["Catégories de déposants","Nb de déposants","Nb de documents déposés","Nb de déposants","Nb de documents déposés","Nb de déposants","Nb de documents déposés"]
["Associations et assimilés",2,3,3,5,4,18]
["Auteurs auto-édités",6,36,5,23,5,27]
["Collectivités publiques",1,1,1,2,1,1]
["Editeurs professionnels",11,51,9,40,6,26]
["Sociétés et assimilés",1,1]
["Total",{"$f":"SUM(B75:B78)","v":19},{"$f":"SUM(C74:C78)","v":92},{"$f":"SUM(D74:D78)","v":18},{"$f":"SUM(E74:E78)","v":70},{"$f":"SUM(F74:F78)","v":16},{"$f":"SUM(G74:G78)","v":72}]
[]
[]
["Nombre de documents par nature - Livre d'artiste, livre graphique"]
[]
["Nature de documents",2016,2017,2018]
["Livre graphique - graphzine",65,16,38]
["Livre d'artiste",27,54,34]
["Total",{"$f":"SUM(B85:B86)","v":92},{"$f":"SUM(C85:C86)","v":70},{"$f":"SUM(D85:D86)","v":72}]

{"sheet":"Photographie","index":5,"n_rows":68,"n_cols":11,"rows_kept":68,"cut":false,"hidden":false,"merged":[]}
[]
["Liste des déposants par année de dépôt - Photographie"]
[]
[null,2016,null,null,null,2017,null,null,null,2018]
["Nom déposant","Nb dépôts","Documents déposés",null,"Nom déposant","Nb dépôts","Documents déposés",null,"Nom déposant","Nb dépôts","Documents déposés"]
["Les Berceurs d'instantanés",1,80,null,"Sepchat The (M) Editions",3,42,null,"Fédonel Arnoux",1,243]
["Sepchat The (M) Editions",3,41,null,"Philippe Rivens",1,20,null,"Despatin et Gobeli",5,88]
["Monnier Annick",1,22,null,"Jean-Pierre Gaumé",1,17,null,"Nicole Lejeune",1,44]
["Geneviève Chevalier & Florent Fajole éditeurs",1,6,null,"Abella Manuel",2,3,null,"Jean-Pierre Gaumé",1,22]
["Charlie Wayne",1,1,null,"La Louce",1,3,null,"Boettcher michel",20,20]
["Total",{"$f":"SUM(B6:B10)","v":7},{"$f":"SUM(C6:C10)","v":150},null,"Pillenière Sebastien",1,2,null,"Philippe Rivens",1,15]
[null,null,null,null,"Total",{"$f":"SUM(F6:F11)","v":9},{"$f":"SUM(G6:G11)","v":87},null,"Roffat Claude",1,12]
[null,null,null,null,null,null,null,null,"Jean Lambert",1,8]
[null,null,null,null,null,null,null,null,"f de phosphène",5,5]
[null,null,null,null,null,null,null,null,"the(M) éditions - Sepchat Editions",2,2]
["Nombre de documents déposés répartis par tranche de tirage",null,null,null,null,null,null,null,"Les éditions du courlis déchaîné",1,1]
[null,null,null,null,null,null,null,null,"Total",{"$f":"SUM(J6:J16)","v":39},{"$f":"SUM(K6:K16)","v":460}]
["Tranche de tirage",2016,2017,2018]
["Tirage inconnu",null,null,427]
["1 - 10",29,85,21]
["11 - 20"]
["21 - 30"]
["31 - 50",80]
["51 - 100",25,1,12]
["101 - 300",1,1]
["301 et plus",15]
["Total",{"$f":"SUM(B20:B26)","v":150},{"$f":"SUM(C20:C26)","v":87},{"$f":"SUM(D19:D26)","v":460}]
[]
[]
[]
["Nombre de déposants par localisation géographique - Photographie"]
[]
["Département",2016,2017,2018]
["Paris",2,3,4]
["Essonne",null,null,1]
["Hauts-de-Seine",null,null,1]
["Bouches-du-Rhône",null,1,2]
["Côtes-d'Or",1]
["Haute-Garonne",null,null,1]
["Indre-et-Loire",null,1,1]
["Isère"]
["Loire-Atlantique",null,1]
["Moselle",1]
["Nord",1]
["Belgique",null,null,1]
["Total",{"$f":"SUM(B34:B45)","v":5},{"$f":"SUM(C34:C45)","v":6}]
[]
["Catégories de déposants - Photographie"]
[null,2016,null,2017,null,2018]
[null,"Nb de déposants","Nb de documents déposés","Nb de déposants","Nb de documents déposés","Nb de déposants","Nb de documents déposés"]
["Associations et assimilés",null,null,1,3]
["Auteurs auto-édités",2,23,4,42,7,440]
["Editeurs professionnels",2,47,1,42,4,20]
["Sociétés et assimilés",1,80]
["Galerie"]
["Collectivités publiques"]
["Total",{"$f":"SUM(B52:B54)","v":5},{"$f":"SUM(C52:C54)","v":150},{"$f":"SUM(D51:D53)","v":6},{"$f":"SUM(E51:E53)","v":87},{"$f":"SUM(F51:F56)","v":11},{"$f":"SUM(G51:G56)","v":460}]
[]
["Nature de documents - Secteur photographie"]
[]
["Nature de documents",2016,2017,2018]
["Photographie positive originale",150,85,433]
["Périodique*",null,1]
["Portfolio de photographie*",5,3]
["Poster",null,null,20]
["Livre de photographes",null,2,7]
["Total",{"$f":"SUM(B62)","v":150},{"$f":"SUM(C62+C66)","v":87},{"$f":"SUM(D62:D66)","v":460}]
["*Le périodique et  portfolio ne sont pas compris dans le total ; ses planches sont comptabilisées à la ligne \"photographie positive originale\""]